Cogmind - Beta 12 @@@ ROGUE MODE // 2024.01.19 @ 23:11:22 Player: Dendrocnid Result: Self-destructed Performance ------------- Evolutions (3) 1500 Regions Visited (4) 800 Robots Destroyed (57) 285 Value Destroyed (2101) 2101 Prototype IDs (2) 40 Alien Tech Used (0) 0 Bonus (0) 0 TOTAL SCORE: 4726 Bonus ------- None Cogmind --------- Core Integrity 579/700 Matter 4/300 Energy 290/290 System Corruption 0% Temperature Warm (114) Movement Treading (330) Ox2 Location -7/Factory Parts ------- > --- POWER (1) -------- Improved Deuterium Engine > --- PROPULSION (2) --- Armored Treads Armored Treads > --- UTILITY (8) ------ Improved Heat Sink Huge Storage Unit Weight Redist. System Trap Scanner > --- WEAPON (2) ------- Assault Cannon > --- INVENTORY (25) --- Light Nuclear Core Armored Treads Titanium Leg Huge Storage Unit Shock Bomb Launcher Grenade Launcher Improved Datajack Improved Datajack Axe Peak State ------------ > --- POWER ------------ Light Nuclear Core > --- PROPULSION ------- Improved Carbon-fiber Leg Improved Carbon-fiber Leg > --- UTILITY ---------- Cryofiber Web Improved Heat Sink Huge Storage Unit Weight Redist. System Trap Scanner Hardened Light Armor Plating > --- WEAPON ----------- Heavy Assault Rifle Heavy Assault Rifle > --- INVENTORY -------- Improved Ion Engine Armored Treads Armored Treads Armored Treads Titanium Leg Huge Storage Unit Shock Bomb Launcher Grenade Launcher Grenade Launcher Datajack Hammer [Rating: 31] Favorites ----------- Power Improved Ion Engine Engine Improved Ion Engine Power Core Light Nuclear Core Propulsion Improved Carbon-fiber Leg Treads Advanced Treads Leg Improved Carbon-fiber Leg Wheel Compact Wheel Utility Huge Storage Unit Device Cryofiber Web Storage Huge Storage Unit Protection Hardened Light Armor Plating Weapon Heavy Assault Rifle Ballistic Gun Heavy Assault Rifle Ballistic Cannon Assault Cannon Launcher Grenade Launcher Special Melee Weapon Improved Datajack Build | -11 -10 -9 -8 -7 ------- Run | Jun Mat Mat Mat Fac Slots Evolved 6 | . . 2 2 2 Power . | . . . . . Propulsion . | . . . . . Utility 6 | . . 2 2 2 Weapon . | . . . . . Parts Attached 68 | 6 5 14 37 6 Power 8 | 1 . 1 5 1 Engine 6 | 1 . 1 3 1 Core 2 | . . . 2 . Reactor . | . . . . . Propulsion 20 | 2 . 1 14 3 Treads 8 | . . . 6 2 Leg 8 | . . . 7 1 Wheel 4 | 2 . 1 1 . Hover . | . . . . . Flight . | . . . . . Utility 16 | 1 3 4 8 . Device 8 | . . 3 5 . Storage 3 | 1 2 . . . Processor . | . . . . . Hackware . | . . . . . Protection 5 | . 1 1 3 . Artifact . | . . . . . Weapon 24 | 2 2 8 10 2 Energy Gun . | . . . . . Energy Cannon . | . . . . . Ballistic Gun 15 | 2 1 5 7 . Ballistic Cannon 3 | . . . 2 1 Launcher 1 | . . . 1 . Special Weapon . | . . . . . Impact Weapon . | . . . . . Slashing Weapon . | . . . . . Piercing Weapon . | . . . . . Special Melee Weapon 5 | . 1 3 . 1 Unidentified Prototypes . | . . . . . Parts Lost 25 | . . 1 20 4 Power 5 | . . . 4 1 Propulsion 6 | . . . 4 2 Utility 7 | . . 1 6 . Weapon 7 | . . . 6 1 Highest Loss Streak 5 | . . 1 5 1 To Critical Strikes 1 | . . . 1 . Average Slot Usage (%) 81 | . 85 99 82 67 Engine 6 | . 14 11 4 6 Core 1 | . . . 3 . Treads 3 | . . . 3 5 Leg 6 | . . . 8 8 Wheel 7 | . 28 22 4 . Device 22 | . . 22 25 23 Storage 9 | . 14 11 9 7 Protection 5 | . . 10 6 . Ballistic Gun 14 | . 25 20 16 . Ballistic Cannon 2 | . . . . 12 Naked Turns . | . . . . . Heaviest Build 105 | 14 92 99 105 103 Greatest Support 46 | 26 26 28 44 46 Greatest Overweight (x) 8 | . 3 3 8 4 Average Overweight (x) 2 | . 2 3 3 2 Largest Inventory Capacity 25 | 8 25 25 25 25 Average Capacity 24 | 6 22 25 25 25 Most Carried 18 | 6 14 16 18 10 Average Carried 10 | 3 9 13 11 9 Final Capacity 25 | 8 25 25 25 25 Final Carried 15 | 6 14 15 10 9 Class Distribution -------------------- 100% | Mutant Dominant Class ---------------- Mutant | -10/Materials Mutant | -9/Materials Mutant | -8/Materials Mutant | -7/Factory Resources | -11 -10 -9 -8 -7 ----------- Run | Jun Mat Mat Mat Fac Matter Collected 1989 | 208 182 247 1089 263 Remotely . | . . . . . Salvage Created 2160 | . 224 310 1407 219 Parts 117 | . 14 21 74 8 Haulers Intercepted 2 | . 1 1 . . Recyclers Shooed 3 | . 1 . 2 . Parts Field Recycled . | . . . . . Retrieved Matter . | . . . . . Parts Self-Destructed . | . . . . . Prevented . | . . . . . Kills | -11 -10 -9 -8 -7 ------- Run | Jun Mat Mat Mat Fac Combat Hostiles Destroyed 44 | . 2 5 29 8 Guns 34 | . 2 5 27 . Cannons 9 | . . . 1 8 AOE 1 | . . . 1 . Classes Destroyed 11 | . 5 1 4 1 Hauler 2 | . 1 1 . . Recycler 4 | . 1 . 3 . Mechanic 1 | . . . 1 . Operator 3 | . 1 . 1 1 Watcher 3 | . 1 . 2 . Swarmer 4 | . . . 2 2 Grunt 22 | . 2 1 16 3 Brawler 1 | . . . 1 . Duelist 1 | . . . . 1 Sentry 13 | . . 4 7 2 Hunter 3 | . . . 3 . Best Kill Streak 7 | . 2 2 7 2 Combat Bots Only 4 | . 2 2 4 2 Max Kills in Single Turn 1 | . 1 1 1 1 Gunslinging . | . . . . . Exploded 1 | . . . 1 . Melee . | . . . . . Uniques/NPCs Destroyed . | . . . . . Combat | -11 -10 -9 -8 -7 -------- Run | Jun Mat Mat Mat Fac Damage Taken 4138 | . 87 283 2961 807 Core 579 | . 30 32 396 121 Absorbed by Shields . | . . . . . Core Remaining (%) 77 | 100 88 92 28 . Volleys Fired 221 | . 16 16 155 34 Largest 2 | . 2 2 2 2 Hottest 88 | . 40 46 67 88 Shots Fired 425 | . 32 32 301 60 Gun 343 | . 32 32 279 . Cannon 79 | . . . 19 60 Launcher 3 | . . . 3 . Special . | . . . . . Kinetic 422 | . 32 32 298 60 Thermal . | . . . . . Explosive 3 | . . . 3 . Electromagnetic . | . . . . . Robot Hit Streak 15 | . 6 9 15 7 Robot Miss Streak 8 | . 2 3 8 4 Penetration Max . | . . . . . Secondary Targets 2 | . . . 2 . Max Gunslinging Chain 1 | . . . 1 . Shots Hit Robots 271 | . 25 22 186 38 Core Hits 114 | . 11 10 77 16 Critical Kills . | . . . . . Critical Parts Destroyed . | . . . . . Critical Strikes 6 | . . . 1 5 Blast 6 | . . . 1 5 Melee Attacks 5 | . 3 1 . 1 Impact . | . . . . . Slashing . | . . . . . Piercing . | . . . . . Sneak Attacks 3 | . 2 . . 1 Combat Hostiles . | . . . . . Follow-up Attacks . | . . . . . Damage Inflicted 4847 | . 286 312 3227 1022 Guns 3073 | . 286 312 2475 . Cannons 1316 | . . . 294 1022 Explosions 454 | . . . 454 . Melee . | . . . . . Ramming 4 | . . . 4 . Kinetic 4389 | . 286 312 2769 1022 Thermal . | . . . . . Explosive 454 | . . . 454 . Electromagnetic . | . . . . . Impact . | . . . . . Slashing . | . . . . . Piercing . | . . . . . Highest Corruption . | . . . . . Average Corruption . | . . . . . Corruption Purged . | . . . . . Corruption Blocked . | . . . . . Overload Shots . | . . . . . Overflow Damage 33 | . . . 4 29 Projectiles 33 | . . . 4 29 Explosions . | . . . . . Melee . | . . . . . Knockbacks 14 | . . . 5 9 Impact . | . . . . . Kinetic 11 | . . . 4 7 Secondary 3 | . . . 1 2 Self-Inflicted Damage . | . . . . . Shots . | . . . . . Rammed 1 | . . . 1 . Targets Rammed 1 | . . . 1 . Kicked . | . . . . . Crushed . | . . . . . Highest Temperature 115 | . 2 . 41 115 Average Temperature 35 | . 2 . 16 66 Received Heat Transfer 1503 | . 51 57 1188 207 Siege Activations . | . . . . . Robots Corrupted . | . . . . . Combat Hostiles . | . . . . . Parts Fried . | . . . . . Impact Corruptions 1 | . . . . 1 Robots Melted . | . . . . . Combat Hostiles . | . . . . . Parts Melted . | . . . . . Heat Transferred . | . . . . . Parts Sabotaged . | . . . . . Parts Stolen . | . . . . . Parts Stripped . | . . . . . Power Chain Reactions . | . . . . . Missiles Intercepted . | . . . . . Alert | -11 -10 -9 -8 -7 ------- Run | Jun Mat Mat Mat Fac Peak Influence 357 | . 130 167 357 206 Initial 60 | . . 5 14 60 Average 96 | . 44 65 118 71 Maximum Alert Level 1 | . . . 1 1 Low Security (%) 86 | 100 100 100 78 99 Level 1 13 | . . . 21 . Level 2 . | . . . . . Level 3 . | . . . . . Level 4 . | . . . . . Level 5 . | . . . . . High Security . | . . . . . Max Security . | . . . . . Squads Dispatched 6 | . . . 5 1 Investigation 1 | . . . 1 . Extermination . | . . . . . Reinforcement 4 | . . . 4 . Assault . | . . . . . Garrison 1 | . . . . 1 Intercept . | . . . . . Searches Triggered . | . . . . . Construction Impeded . | . . . . . Haulers Reinforced . | . . . . . Active Scanning Responses . | . . . . . Cargo Convoy Interrupts . | . . . . . Stealth | -11 -10 -9 -8 -7 --------- Run | Jun Mat Mat Mat Fac Distress Signals 4 | . 1 . 3 . Communications Jammed . | . . . . . Distress Signals . | . . . . . Times Spotted 81 | . 7 7 52 15 Peak Tracking Total 6 | . 3 3 6 3 Tactical Retreats 5 | . . . 3 2 Traps | -11 -10 -9 -8 -7 ------- Run | Jun Mat Mat Mat Fac Traps Triggered 2 | . . 2 . . Indirectly . | . . . . . Trap Hack Attempts 149 | . 63 25 . 61 Triggered . | . . . . . Disarmed 2 | . 1 1 . . Reprogrammed 16 | . 8 3 . 5 Reused . | . . . . . Traps Extracted . | . . . . . Installed . | . . . . . Triggered . | . . . . . Machines | -11 -10 -9 -8 -7 ---------- Run | Jun Mat Mat Mat Fac Machines Disabled 1 | . . . 1 . Max in Single Turn 1 | . . . 1 . Machines Repaired . | . . . . . Machines Sabotaged . | . . . . . Overloaded Fab Kills . | . . . . . Hacking | -11 -10 -9 -8 -7 --------- Run | Jun Mat Mat Mat Fac Machines Accessed 7 | . 2 2 3 . Terminals 7 | . 2 2 3 . Fabricators . | . . . . . Repair Stations . | . . . . . Recycling Units . | . . . . . Scanalyzers . | . . . . . Garrison Access . | . . . . . Total Hacks 19 | . 6 3 10 . Successful 7 | . 3 . 4 . Failed 12 | . 3 3 6 . Catastrophic 5 | . 1 3 1 . Database Lockouts . | . . . . . Manual 11 | . 3 3 5 . Terminals 19 | . 6 3 10 . Fabricators . | . . . . . Repair Stations . | . . . . . Recycling Units . | . . . . . Scanalyzers . | . . . . . Garrison Access . | . . . . . Terminal Hacks 7 | . 3 . 4 . Part Schematic 1 | . 1 . . . Prototype ID Bank 1 | . . . 1 . Emergency Access Points 1 | . . . 1 . Alert Level 1 | . . . 1 . Unreport Threat 1 | . . . 1 . Locate Traps 1 | . 1 . . . Zone Layout 1 | . 1 . . . Fabricator Hacks . | . . . . . Repair Station Hacks . | . . . . . Recycling Unit Hacks . | . . . . . Scanalyzer . | . . . . . Garrison Access Hacks . | . . . . . Unauthorized Hacks . | . . . . . Terminals . | . . . . . Fabricators . | . . . . . Repair Stations . | . . . . . Recycling Units . | . . . . . Scanalyzers . | . . . . . Garrison Access . | . . . . . Data Cores Recovered 1 | . 1 . . . Used . | . . . . . Hacking Detections 7 | . 2 2 3 . Full Trace Events 2 | . . . 2 . Feedback Events . | . . . . . Feedback Blocked . | . . . . . Robot Schematics Acquired . | . . . . . Robots Built . | . . . . . Authchips . | . . . . . Time . | . . . . . Total Robot Build Rating . | . . . . . Part Schematics Acquired 1 | . 1 . . . Parts Built . | . . . . . Authchips . | . . . . . Time . | . . . . . Total Part Build Rating . | . . . . . Parts Repaired . | . . . . . Time . | . . . . . Parts Recycled . | . . . . . Recycled Matter . | . . . . . Retrieved Matter . | . . . . . Retrieved Components . | . . . . . Parts Scanalyzed . | . . . . . Part Schematics Acquired . | . . . . . Parts Damaged . | . . . . . Bothacking | -11 -10 -9 -8 -7 ------------ Run | Jun Mat Mat Mat Fac Used RIF Installer . | . . . . . Robots Hacked 3 | . 2 . . 1 Non-combat 3 | . 2 . . 1 Combat . | . . . . . Robot Hacks Applied 4 | . 3 . . 1 parse_system 2 | . 2 . . . no_distress 1 | . 1 . . . find_chute 1 | . . . . 1 Relay Couplers Released . | . . . . . Fabnet Peak Effective % . | . . . . . Robots Rewired . | . . . . . Allies Hacked . | . . . . . Hacks Repelled . | . . . . . Allies | -11 -10 -9 -8 -7 -------- Run | Jun Mat Mat Mat Fac Total Allies . | . . . . . Largest Group . | . . . . . Highest-Rated Group . | . . . . . Highest-Rated Ally . | . . . . . Total Orders . | . . . . . Ally Attacks . | . . . . . Total Damage . | . . . . . Kills . | . . . . . Allies Corrupted . | . . . . . Allies Melted . | . . . . . Intel | -11 -10 -9 -8 -7 ------- Run | Jun Mat Mat Mat Fac Robot Analysis Total . | . . . . . Derelict Logs Recovered . | . . . . . Drone Launches . | . . . . . Drone Recoveries . | . . . . . Exploration | -11 -10 -9 -8 -7 ------------- Run | Jun Mat Mat Mat Fac Turns Passed 4550 | 55 468 432 2808 787 Spaces Moved 1674 | 46 274 237 908 209 Core 3 | 3 . . . . Treads 192 | . . . 120 72 Legs 560 | . . . 423 137 Wheels 919 | 43 274 237 365 . Hover . | . . . . . Flight . | . . . . . Fastest Speed 50 | 50 90 135 140 260 Average Speed 207 | 87 122 137 236 295 Slowest Speed 410 | 100 135 140 385 410 Overloaded Moves . | . . . . . Propulsion Burnouts . | . . . . . Robots Hopped . | . . . . . Cave-ins Triggered . | . . . . . Exploration Rate (%) 27 | 3 43 23 63 5 Regions Visited 4 Branch Regions . Pre-discovered Areas . | . . . . . Known Exits Taken . | . . . . . Unknown Exits Taken 4 | 1 1 1 1 . Scrap Searched . | . . . . . Spaces Dug . | . . . . . Terrain Destroyed 17 | . . . 17 . Melee . | . . . . . Projectile 1 | . . . 1 . AOE 15 | . . . 15 . Terrain Rammed . | . . . . . Walls Destroyed . | . . . . . Machines Disabled . | . . . . . Actions | -11 -10 -9 -8 -7 --------- Run | Jun Mat Mat Mat Fac Total 2320 | 57 371 308 1268 316 Wait 135 | . 1 4 126 4 Move 1670 | 45 273 236 907 209 Hop . | . . . . . Pick Up 46 | 6 8 6 25 1 Fast Attach 14 | 6 3 . 4 1 Attach 25 | . . 3 20 2 Detach 3 | . . . 3 . Swap 29 | . 2 11 13 3 Drop 22 | . 2 6 14 . Fire 221 | . 16 16 155 34 Melee 5 | . 3 1 . 1 Ram . | . . . . . Kick . | . . . . . Crush 1 | . . . 1 . Escape Stasis . | . . . . . Rewire . | . . . . . Trap 149 | . 63 25 . 61 Miscellaneous . | . . . . . Route ------- -11/Junkyard -10/Materials (discovered 2 exits: *Mat / [*Min]) -9/Materials -8/Materials (discovered 3 exits: [*Fac x2] / [*Sto]) -7/Factory History --------- Turn | Location | Event 36 | -11/Junkyard | Discovered new exit (range 15) 56 | -11/Junkyard | Entered Materials 199 | -10/Materials | Discovered new exit (range 16) 318 | -10/Materials | Build established: Mutant 407 | -10/Materials | Discovered new exit (range 4) 524 | -10/Materials | Entered another Materials area 524 | -9/Materials | Evolved 2 slots: Utility x2 918 | -9/Materials | Discovered new exit (range 7) 956 | -9/Materials | Entered another Materials area 956 | -8/Materials | Evolved 2 slots: Utility x2 1918 | -8/Materials | Lost 4 parts (1p1n1u1w) 2025 | -8/Materials | Core integrity fell below 50% 2083 | -8/Materials | Lost 5 parts (1p1n1u2w) 2154 | -8/Materials | Discovered new exit (range 12) 2795 | -8/Materials | Discovered new exit (range 14) 3196 | -8/Materials | Discovered new exit (range 7) 3707 | -8/Materials | Lost 3 parts (2u1w) 3764 | -8/Materials | Entered Factory 3764 | -7/Factory | Evolved 2 slots: Utility x2 4530 | -7/Factory | Garrison activated, responded to threat 4551 | -7/Factory | Self-destructed Last Messages --------------- 04269_ Acquired 33 matter. 04275_ Acquired 11 matter. 04335_ Acquired 2 matter. 04459_ Y-54 Guardian Imp. Deuterium Engine blasted off. 04461_ Imp. Ion Engine destroyed. 04462_ Y-54 Guardian Lgt. Treads blasted off. 04465_ Y-54 Guardian Imp. Heat Sink blasted off. 04468_ Y-54 Guardian destroyed. 04505_ K-01 Serf collects debris. 04525_ Acquired Imp. Deuterium Engine. 04525_ K-01 Serf collects debris. 04526_ Acquired 32 matter. 04530_ G-47 Trooper suffers critical hit (Blast). 04530_ Destroyed Lgt. Nuclear Core. 04530_ G-47 Trooper calls for garrison reinforcements. 04530_ ALERT: Activating Garrison Access F002. 04536_ G-47 Trooper knocked back. 04539_ G-47 Trooper destroyed. 04543_ Assault Cannon destroyed. 04547_ Y-54 Guardian Imp. Light Armor Plating blasted off. Map ----- +----------------------------------------------------+ | ????# ^+??????????????????????? | | ????#### ####### ^#??????????????????????? | | ???????# #?????# ########????????????????? | | ???????# #?????# # ! #????????????????? | | ???????# #?????# + !#????????????????? | | ######?# #?????# # """ #????????????????? | | # ### ###???# # """ #????????????????? | | # # #???# + """ #????????????????? | | # [ # #???# ##### # #????????????????? | | # + #???# ????# ########????????????????? | | # # #???# ????# #???????????????????????? | | # # % #???# ????# #???????????????????????? | | ########+####### ????# ##############??????????? | | ????# ##+###?# ?????????? | | ????# # # ?????????? | | ????# """ """ # # ?????????? | | ????# """ """ # + ?????????? | | ????# """ """ # # ##############??????????? | | ????# "" "" # # #???????????????????????? | | ????# "" "" # =?# #???????????????????????? | | ????#= ######?# #???????????????????????? | | ????#########????????#k#???????????????????????? | | ???????????????????### ###?????????????????????? | | ???????????????????# #?????????????????????? | | ???????????????????# = #?????????????????????? | | ???????????????????+ ! @ +?????????????????????? | | ???????????????????# %!%#?????????????????????? | | ???????????????????# #?????????????????????? | | ???????????????????## ##?????????????????????? | | ????????????????????# #??????????????????????? | | ????????????????????# +??????????????????????? | | ????????????????????# #??????????????????????? | | ????????????????????# #??????????????????????? | | ????????????????????# #??????????????????????? | | ????????????????????#ga #??????????????????????? | | ????????????????????+ %Y#??????????????????????? | | ????????????????????# %%#??????????????????????? | | ????????????????????#% #??????????????????????? | | ????????????????????#% ???????????????????????? | | ????????????????????# ???????????????????????? | | ????????????????????? ???????????????????????? | | ???????????????????????????????????????????????? | | ???????????????????????????????????????????????? | | ???????????????????????????????????????????????? | | ???????????????????????????????????????????????? | | ???????????????????????????????????????????????? | | ???????????????????????????????????????????????? | | ???????????????????????????????????????????????? | | ???????????????????????????????????????????????? | | ???????????????????????????????????????????????? | +----------------------------------------------------+ Best States ------------- Heat Dissipation 53 Energy Generation 16 Energy Capacity 290 Matter Stores 300 Matter Capacity 300 Sight Range 16 Terrain Scan Density 10 Additional Mass Support 6 Base Temperature (-) 100 Armor Coverage 300 Evasion (%) 42 Recoil Reduction 2 Item Schematics ----------------- Datajack | -10/Materials | Hacked Robot Schematics ------------------ None Fabricated ------------ Nothing Alien Tech Used ----------------- None Achievements -------------- None Challenges ------------ None Game ------ Seed FlightProtonBuckler Manual? 0 Play Time 00:40:29 Cumulative 124.6 hours Start 2024.01.19 @ 16:00:38 End 2024.01.19 @ 23:11:22 Sessions 3 Manual Loads 0 Difficulty Rogue Special Mode None Game No. 201 Rogue 201 Adventurer 0 Explorer 0 Win Type - Total 0 Types 0/0/0/0/0/0/0/0/0 Lore% 29 Gallery% 50 Achievement% 42 Wizard Run 0 Options --------- ASCII 0 Keyboard 0 Movement Mouse Keybinds 0 Fullscreen 1 Font 18/SmallcapsGlow Map View 76x50 Tactical HUD 1 Map Filters NONE Filters NONE Steam 1 RUN: f8f7df81-78d5-434f-8f69-0e8d08e3dd7d